Workbook

Sheet Coversheet
B1: Brisbane City Council
B2: Local Government Infrastructure Plan (LGIP)
B5: Anticipated Charges Revenue and Future Cash Flows Model
B7: Version: | C7: LGIP A1a
B8: Date: | C8: Effective 10 December 2021
B9: Author: | C9: Brisbane City Council
B12: Model flow diagram (click to follow)
C45: Admin Access Enabled? --> | F45: No

Sheet Modelling inputs
A1: Local Government Infrastructure Plan
A2: Brisbane City Council
A3: =Coversheet!C8 -> Effective 10 December 2021
A4: Input
A5: Formula | C5: General modelling inputs
C7: Model parameters | E7: Value | G7: BCC Comment/Source
C9: Modelling timframes
C11: Modelling start year: | E11: 2016 | G11: Base values for all costs
C12: Modelling end year: | E12: 2026 | G12: N/A
C13: Modelling term (years): | E13: =E12-E11 -> 10 | G13: N/A
C15: Financial inputs
C17: Average 10 Year Bond Rate: | G17: Not used
C18: Basic Margin on 10 Yr. Bond Rate: | G18: Not used
C20: Calculated WACC: | E20: =E18+E17 -> 0 | G20: Not used
C22: Optional WACC over ride: | E22: 0.0591 | G22: Corporately endorsed WACC rate
C24: Applied WACC: | E24: =IF(OR(WACC_override="",WACC_override=0),WACC_Calculated,WACC_override) -> 0.0591 | G24: Defaults to caculated WACC if no override value is entered
C26: Charge inputs
C28: Adopted Charging Source (Default) | E28: BAICR5 | G28: Brisbane Adopted Infrastructure Charges Resolution (No.5) 2015
C30: Select charge methodology | E30: Default | G30: Not used
C32: Network expenditure inputs
C34: Local Roads | G34: Sourced from LGIP Local Roads network financial model
C36: Pathways | G36: Sourced from LGIP Pathways network financial model
C38: Ferry Terminals | G38: Sourced from LGIP Ferry Terminals network financial model
C40: Public Parks | G40: Sourced from LGIP Public Parks network financial model
C42: Land for Community Facilities | G42: Sourced from LGIP Land for Community Facilities network financial model
C44: Stormwater | G44: Sourced from LGIP Stormwater network financial model

Sheet Growth (Residential)
A1: Local Government Infrastructure Plan
A2: Brisbane City Council
A3: =Coversheet!C8 -> Effective 10 December 2021 | D3: Input
D4: Formula
A5: 1.1 | B5: Anticipated Residential Growth - Census Year
B7: Development type(1) | C7: Unit of demand(2) | D7: 2016 | E7: 2021 | F7: 2026
B8: Attached Dwelling | C8: Number of dwellings: 1 or 2 bedroom dwelling | D8: 98722 | E8: 120784 | F8: 136797
B9: Attached Dwelling | C9: Number of dwellings: 3 or more bedroom dwelling | D9: 45200 | E9: 52988 | F9: 58110
B10: Detached Dwelling | C10: Number of dwellings: 1 or 2 bedroom dwelling | D10: 28101 | E10: 28285 | F10: 28513
B11: Detached Dwelling | C11: Number of dwellings: 3 or more bedroom dwelling | D11: 281996 | E11: 284884 | F11: 290495
B12: Short term accommodation | C12: Number of bedrooms: Bedroom that is not within a suite | D12: 10909 | E12: 11835 | F12: 12468
B13: Short term accommodation | C13: Number of suites: Suite with 1 or 2 bedrooms | D13: 5615 | E13: 6219 | F13: 6739
B14: Short term accommodation | C14: Number of suites: Suite with 3 or more bedrooms | D14: 1685 | E14: 1858 | F14: 2006
B15: Long term accommodation | C15: Number of bedrooms: Bedroom that is not within a suite | D15: 510 | E15: 534 | F15: 556
B16: Long term accommodation | C16: Number of suites: Suite with 1 or 2 bedrooms | D16: 1673 | E16: 1752 | F16: 1823
B17: Long term accommodation | C17: Number of suites: Suite with 3 or more bedrooms | D17: 341 | E17: 357 | F17: 372
A19: 1.2 | B19: Anticipated Residential Growth - Annualised
B21: Development type | C21: Unit of demand | D21: 2016 | E21: 2017 | F21: 2018 | G21: 2019 | H21: 2020 | I21: 2021 | J21: 2022 | K21: 2023 | L21: 2024 | M21: 2025 | N21: 2026 | P21: Charge Code | Q21: Applied Charge
B22: =B8 -> Attached Dwelling | C22: =C8 -> Number of dwellings: 1 or 2 bedroom dwelling | D22: =D8 -> 98722 | E22: =($E8-$D8)/5 -> 4412.4 | F22: 4412.4 | G22: 4412.4 | H22: 4412.4 | I22: 4412.4 | J22: =($F8-$E8)/5 -> 3202.6 | K22: 3202.6 | L22: 3202.6 | M22: 3202.6 | N22: 3202.6 | P22: B11 | Q22: =IFERROR(IF('Modelling inputs'!$E$30="Default",VLOOKUP(P22,'BAICR Charge Lookup'!A:F,6,FALSE),IF('Modelling inputs'!$E$30="Alternate charge",VLOOKUP('Growth (Residential)'!P22,'BAICR Charge Lookup'!A:G,7,FALSE))),0) -> 10000
B23: =B9 -> Attached Dwelling | C23: Number of dwellings: 3 or more bedroom dwelling | D23: 45200 | E23: 1557.6 | F23: 1557.6 | G23: 1557.6 | H23: 1557.6 | I23: 1557.6 | J23: 1024.4 | K23: 1024.4 | L23: 1024.4 | M23: 1024.4 | N23: 1024.4 | P23: B12 | Q23: =IFERROR(IF('Modelling inputs'!$E$30="Default",VLOOKUP(P23,'BAICR Charge Lookup'!A:F,6,FALSE),IF('Modelling inputs'!$E$30="Alternate charge",VLOOKUP('Growth (Residential)'!P23,'BAICR Charge Lookup'!A:G,7,FALSE))),0) -> 14000
B24: =B10 -> Detached Dwelling | C24: Number of dwellings: 1 or 2 bedroom dwelling | D24: 28101 | E24: 36.8 | F24: 36.8 | G24: 36.8 | H24: 36.8 | I24: 36.8 | J24: 45.6 | K24: 45.6 | L24: 45.6 | M24: 45.6 | N24: 45.6 | P24: B31 | Q24: =IFERROR(IF('Modelling inputs'!$E$30="Default",VLOOKUP(P24,'BAICR Charge Lookup'!A:F,6,FALSE),IF('Modelling inputs'!$E$30="Alternate charge",VLOOKUP('Growth (Residential)'!P24,'BAICR Charge Lookup'!A:G,7,FALSE))),0) -> 10000
B25: =B11 -> Detached Dwelling | C25: Number of dwellings: 3 or more bedroom dwelling | D25: 281996 | E25: 577.6 | F25: 577.6 | G25: 577.6 | H25: 577.6 | I25: 577.6 | J25: 1122.2 | K25: 1122.2 | L25: 1122.2 | M25: 1122.2 | N25: 1122.2 | P25: B32 | Q25: =IFERROR(IF('Modelling inputs'!$E$30="Default",VLOOKUP(P25,'BAICR Charge Lookup'!A:F,6,FALSE),IF('Modelling inputs'!$E$30="Alternate charge",VLOOKUP('Growth (Residential)'!P25,'BAICR Charge Lookup'!A:G,7,FALSE))),0) -> 14000
B26: =B12 -> Short term accommodation | C26: Number of bedrooms: Bedroom that is not within a suite | D26: 10909 | E26: 185.2 | F26: 185.2 | G26: 185.2 | H26: 185.2 | I26: 185.2 | J26: 126.6 | K26: 126.6 | L26: 126.6 | M26: 126.6 | N26: 126.6 | P26: C01 | Q26: =IFERROR(IF('Modelling inputs'!$E$30="Default",VLOOKUP(P26,'BAICR Charge Lookup'!A:F,6,FALSE),IF('Modelling inputs'!$E$30="Alternate charge",VLOOKUP('Growth (Residential)'!P26,'BAICR Charge Lookup'!A:G,7,FALSE))),0) -> 4000
B27: =B13 -> Short term accommodation | C27: Number of suites: Suite with 1 or 2 bedrooms | D27: 5615 | E27: 120.8 | F27: 120.8 | G27: 120.8 | H27: 120.8 | I27: 120.8 | J27: 104 | K27: 104 | L27: 104 | M27: 104 | N27: 104 | P27: C02 | Q27: =IFERROR(IF('Modelling inputs'!$E$30="Default",VLOOKUP(P27,'BAICR Charge Lookup'!A:F,6,FALSE),IF('Modelling inputs'!$E$30="Alternate charge",VLOOKUP('Growth (Residential)'!P27,'BAICR Charge Lookup'!A:G,7,FALSE))),0) -> 4000
B28: =B14 -> Short term accommodation | C28: Number of suites: Suite with 3 or more bedrooms | D28: 1685 | E28: 34.6 | F28: 34.6 | G28: 34.6 | H28: 34.6 | I28: 34.6 | J28: 29.6 | K28: 29.6 | L28: 29.6 | M28: 29.6 | N28: 29.6 | P28: C03 | Q28: =IFERROR(IF('Modelling inputs'!$E$30="Default",VLOOKUP(P28,'BAICR Charge Lookup'!A:F,6,FALSE),IF('Modelling inputs'!$E$30="Alternate charge",VLOOKUP('Growth (Residential)'!P28,'BAICR Charge Lookup'!A:G,7,FALSE))),0) -> 6000
B29: =B15 -> Long term accommodation | C29: Number of bedrooms: Bedroom that is not within a suite | D29: 510 | E29: 4.8 | F29: 4.8 | G29: 4.8 | H29: 4.8 | I29: 4.8 | J29: 4.4 | K29: 4.4 | L29: 4.4 | M29: 4.4 | N29: 4.4 | P29: D01 | Q29: =IFERROR(IF('Modelling inputs'!$E$30="Default",VLOOKUP(P29,'BAICR Charge Lookup'!A:F,6,FALSE),IF('Modelling inputs'!$E$30="Alternate charge",VLOOKUP('Growth (Residential)'!P29,'BAICR Charge Lookup'!A:G,7,FALSE))),0) -> 8000
B30: =B16 -> Long term accommodation | C30: Number of suites: Suite with 1 or 2 bedrooms | D30: 1673 | E30: 15.8 | F30: 15.8 | G30: 15.8 | H30: 15.8 | I30: 15.8 | J30: 14.2 | K30: 14.2 | L30: 14.2 | M30: 14.2 | N30: 14.2 | P30: D02 | Q30: =IFERROR(IF('Modelling inputs'!$E$30="Default",VLOOKUP(P30,'BAICR Charge Lookup'!A:F,6,FALSE),IF('Modelling inputs'!$E$30="Alternate charge",VLOOKUP('Growth (Residential)'!P30,'BAICR Charge Lookup'!A:G,7,FALSE))),0) -> 8000
B31: =B17 -> Long term accommodation | C31: Number of suites: Suite with 3 or more bedrooms | D31: 341 | E31: 3.2 | F31: 3.2 | G31: 3.2 | H31: 3.2 | I31: 3.2 | J31: 3 | K31: 3 | L31: 3 | M31: 3 | N31: 3 | P31: D03 | Q31: =IFERROR(IF('Modelling inputs'!$E$30="Default",VLOOKUP(P31,'BAICR Charge Lookup'!A:F,6,FALSE),IF('Modelling inputs'!$E$30="Alternate charge",VLOOKUP('Growth (Residential)'!P31,'BAICR Charge Lookup'!A:G,7,FALSE))),0) -> 12000
A33: 1.3 | B33: Anticipated Revenue - Applied Charge (3)
B35: Development type | C35: Unit of demand | D35: 2016 | E35: 2017 | F35: 2018 | G35: 2019 | H35: 2020 | I35: 2021 | J35: 2022 | K35: 2023 | L35: 2024 | M35: 2025 | N35: 2026
B36: =B8 -> Attached Dwelling | C36: =C8 -> Number of dwellings: 1 or 2 bedroom dwelling | D36: N/A | E36: =E22*$Q22 -> 44124000 | F36: 44124000 | G36: 44124000 | H36: 44124000 | I36: 44124000 | J36: 32026000 | K36: 32026000 | L36: 32026000 | M36: 32026000 | N36: 32026000
B37: =B9 -> Attached Dwelling | C37: Number of dwellings: 3 or more bedroom dwelling | D37: N/A | E37: =E23*$Q23 -> 21806400 | F37: 21806400 | G37: 21806400 | H37: 21806400 | I37: 21806400 | J37: 14341600 | K37: 14341600 | L37: 14341600 | M37: 14341600 | N37: 14341600
B38: =B10 -> Detached Dwelling | C38: Number of dwellings: 1 or 2 bedroom dwelling | D38: N/A | E38: =E24*$Q24 -> 368000 | F38: 368000 | G38: 368000 | H38: 368000 | I38: 368000 | J38: 456000 | K38: 456000 | L38: 456000 | M38: 456000 | N38: 456000
B39: =B11 -> Detached Dwelling | C39: Number of dwellings: 3 or more bedroom dwelling | D39: N/A | E39: =E25*$Q25 -> 8086400 | F39: 8086400 | G39: 8086400 | H39: 8086400 | I39: 8086400 | J39: 15710800 | K39: 15710800 | L39: 15710800 | M39: 15710800 | N39: 15710800
B40: =B12 -> Short term accommodation | C40: Number of bedrooms: Bedroom that is not within a suite | D40: N/A | E40: =E26*$Q26 -> 740800 | F40: 740800 | G40: 740800 | H40: 740800 | I40: 740800 | J40: 506400 | K40: 506400 | L40: 506400 | M40: 506400 | N40: 506400
B41: =B13 -> Short term accommodation | C41: Number of suites: Suite with 1 or 2 bedrooms | D41: N/A | E41: =E27*$Q27 -> 483200 | F41: 483200 | G41: 483200 | H41: 483200 | I41: 483200 | J41: 416000 | K41: 416000 | L41: 416000 | M41: 416000 | N41: 416000
B42: =B14 -> Short term accommodation | C42: Number of suites: Suite with 3 or more bedrooms | D42: N/A | E42: =E28*$Q28 -> 207600 | F42: 207600 | G42: 207600 | H42: 207600 | I42: 207600 | J42: 177600 | K42: 177600 | L42: 177600 | M42: 177600 | N42: 177600
B43: =B15 -> Long term accommodation | C43: Number of bedrooms: Bedroom that is not within a suite | D43: N/A | E43: =E29*$Q29 -> 38400 | F43: 38400 | G43: 38400 | H43: 38400 | I43: 38400 | J43: 35200 | K43: 35200 | L43: 35200 | M43: 35200 | N43: 35200
B44: =B16 -> Long term accommodation | C44: Number of suites: Suite with 1 or 2 bedrooms | D44: N/A | E44: =E30*$Q30 -> 126400 | F44: 126400 | G44: 126400 | H44: 126400 | I44: 126400 | J44: 113600 | K44: 113600 | L44: 113600 | M44: 113600 | N44: 113600
B45: =B17 -> Long term accommodation | C45: Number of suites: Suite with 3 or more bedrooms | D45: N/A | E45: =E31*$Q31 -> 38400 | F45: 38400 | G45: 38400 | H45: 38400 | I45: 38400 | J45: 36000 | K45: 36000 | L45: 36000 | M45: 36000 | N45: 36000
B46: Total | C46: N/A | D46: N/A | E46: =SUM(E36:E45) -> 76019600 | F46: 76019600 | G46: 76019600 | H46: 76019600 | I46: 76019600 | J46: 63819200 | K46: 63819200 | L46: 63819200 | M46: 63819200 | N46: 63819200
A48: Notes:
A49: (1) Attached and detached dwellings growth figures are based on the predicted residential dwelling supply. Short and long term accommodation growth figures are based on land use counts and growth rates sourced from LGIP planning assumptions.
A50: (2) Unit of demand is based on the current Adopted Infrastructure Charge Resolution.
A51: (3) As it is Councils current proactice not to index charges, no indexation has been applied

Sheet Growth (Non-Residential)
A1: Local Government Infrastructure Plan
A2: Brisbane City Council
A3: =Coversheet!C8 -> Effective 10 December 2021 | D3: Input
D4: Formula
A5: 2.1 | B5: Anticipated Non Residential Growth - Census Year
B7: Development type(1) | C7: Unit of demand(2) | D7: 2016 | E7: 2021 | F7: 2026
B8: Food Services, Arts & Recreation | C8: m2 GFA | D8: 1329423 | E8: 1450071 | F8: 1541614
B9: Community - Education | C9: m2 GFA | D9: 3341563 | E9: 3754708 | F9: 4194896
B10: Community - Health | C10: m2 GFA | D10: 1710389 | E10: 1902219 | F10: 2068717
B11: Community - Other | C11: m2 GFA | D11: 1016836 | E11: 1132432 | F11: 1253052
B12: Industry - General | C12: m2 GFA | D12: 549703 | E12: 587701 | F12: 630370
B13: Industry - Heavy | C13: m2 GFA | D13: 350643 | E13: 391639 | F13: 447057
B14: Industry - Light | C14: m2 GFA | D14: 6559591 | E14: 6854829 | F14: 7153262
B15: Industry - Other | C15: m2 GFA | D15: 128868 | E15: 135382 | F15: 143945
B16: Office | C16: m2 GFA | D16: 6128313 | E16: 6616538 | F16: 7170238
B17: Retail | C17: m2 GFA | D17: 3590588 | E17: 3836609 | F17: 4126138
B18: Showroom, Retail Warehouse & Bulky Goods | C18: m2 GFA | D18: 921490 | E18: 978076 | F18: 1028868
B19: Warehouse, Bulk Stores & Logistics | C19: m2 GFA | D19: 8403730 | E19: 9052226 | F19: 9897985
B20: Rural | C20: m2 GFA | D20: 4666 | E20: 5149 | F20: 5260
A22: 2.2 | B22: Anticipated Non Residential Growth - Annualised
B24: Development type | C24: Unit of demand | D24: 2016 | E24: 2017 | F24: 2018 | G24: 2019 | H24: 2020 | I24: 2021 | J24: 2022 | K24: 2023 | L24: 2024 | M24: 2025 | N24: 2026 | P24: Charge Code | Q24: Applied Charge
B25: =B8 -> Food Services, Arts & Recreation | C25: =C8 -> m2 GFA | D25: =D8 -> 1329423 | E25: =($E8-$D8)/5 -> 24129.6 | F25: =($E8-$D8)/5 -> 24129.6 | G25: 24129.6 | H25: =($E8-$D8)/5 -> 24129.6 | I25: 24129.6 | J25: =($F8-$E8)/5 -> 18308.6 | K25: 18308.6 | L25: =($F8-$E8)/5 -> 18308.6 | M25: 18308.6 | N25: 18308.6 | P25: G02 | Q25: =IFERROR(IF('Modelling inputs'!$E$30="Default",VLOOKUP(P25,'BAICR Charge Lookup'!A:F,6,FALSE),IF('Modelling inputs'!$E$30="Alternate charge",VLOOKUP(P25,'BAICR Charge Lookup'!A:G,7,FALSE))),0) -> 144
B26: =B9 -> Community - Education | C26: m2 GFA | D26: =D9 -> 3341563 | E26: =($E9-$D9)/5 -> 82629 | F26: 82629 | G26: 82629 | H26: 82629 | I26: 82629 | J26: 88037.6 | K26: 88037.6 | L26: =($F9-$E9)/5 -> 88037.6 | M26: 88037.6 | N26: 88037.6 | P26: J03 | Q26: =IFERROR(IF('Modelling inputs'!$E$30="Default",VLOOKUP(P26,'BAICR Charge Lookup'!A:F,6,FALSE),IF('Modelling inputs'!$E$30="Alternate charge",VLOOKUP(P26,'BAICR Charge Lookup'!A:G,7,FALSE))),0) -> 104
B27: =B10 -> Community - Health | C27: m2 GFA | D27: 1710389 | E27: =($E10-$D10)/5 -> 38366 | F27: 38366 | G27: 38366 | H27: 38366 | I27: 38366 | J27: 33299.6 | K27: 33299.6 | L27: =($F10-$E10)/5 -> 33299.6 | M27: 33299.6 | N27: 33299.6 | P27: S03 | Q27: =IFERROR(IF('Modelling inputs'!$E$30="Default",VLOOKUP(P27,'BAICR Charge Lookup'!A:F,6,FALSE),IF('Modelling inputs'!$E$30="Alternate charge",VLOOKUP(P27,'BAICR Charge Lookup'!A:G,7,FALSE))),0) -> 104
B28: =B11 -> Community - Other | C28: m2 GFA | D28: 1016836 | E28: =($E11-$D11)/5 -> 23119.2 | F28: 23119.2 | G28: 23119.2 | H28: 23119.2 | I28: 23119.2 | J28: 24124 | K28: 24124 | L28: =($F11-$E11)/5 -> 24124 | M28: 24124 | N28: 24124 | P28: E02 | Q28: =IFERROR(IF('Modelling inputs'!$E$30="Default",VLOOKUP(P28,'BAICR Charge Lookup'!A:F,6,FALSE),IF('Modelling inputs'!$E$30="Alternate charge",VLOOKUP(P28,'BAICR Charge Lookup'!A:G,7,FALSE))),0) -> 34
B29: =B12 -> Industry - General | C29: m2 GFA | D29: 549703 | E29: =($E12-$D12)/5 -> 7599.6 | F29: 7599.6 | G29: 7599.6 | H29: 7599.6 | I29: 7599.6 | J29: 8533.8 | K29: 8533.8 | L29: =($F12-$E12)/5 -> 8533.8 | M29: 8533.8 | N29: 8533.8 | P29: N02 | Q29: =IFERROR(IF('Modelling inputs'!$E$30="Default",VLOOKUP(P29,'BAICR Charge Lookup'!A:F,6,FALSE),IF('Modelling inputs'!$E$30="Alternate charge",VLOOKUP(P29,'BAICR Charge Lookup'!A:G,7,FALSE))),0) -> 14
B30: =B13 -> Industry - Heavy | C30: m2 GFA | D30: 350643 | E30: =($E13-$D13)/5 -> 8199.2 | F30: 8199.2 | G30: 8199.2 | H30: 8199.2 | I30: 8199.2 | J30: 11083.6 | K30: 11083.6 | L30: =($F13-$E13)/5 -> 11083.6 | M30: 11083.6 | N30: 11083.6 | P30: P01 | Q30: =IFERROR(IF('Modelling inputs'!$E$30="Default",VLOOKUP(P30,'BAICR Charge Lookup'!A:F,6,FALSE),IF('Modelling inputs'!$E$30="Alternate charge",VLOOKUP(P30,'BAICR Charge Lookup'!A:G,7,FALSE))),0) -> 30
B31: =B14 -> Industry - Light | C31: m2 GFA | D31: 6559591 | E31: =($E14-$D14)/5 -> 59047.6 | F31: 59047.6 | G31: 59047.6 | H31: 59047.6 | I31: 59047.6 | J31: 59686.6 | K31: 59686.6 | L31: =($F14-$E14)/5 -> 59686.6 | M31: 59686.6 | N31: 59686.6 | P31: N01 | Q31: =IFERROR(IF('Modelling inputs'!$E$30="Default",VLOOKUP(P31,'BAICR Charge Lookup'!A:F,6,FALSE),IF('Modelling inputs'!$E$30="Alternate charge",VLOOKUP(P31,'BAICR Charge Lookup'!A:G,7,FALSE))),0) -> 14
B32: =B15 -> Industry - Other | C32: m2 GFA | D32: 128868 | E32: =($E15-$D15)/5 -> 1302.8 | F32: 1302.8 | G32: 1302.8 | H32: 1302.8 | I32: 1302.8 | J32: 1712.6 | K32: 1712.6 | L32: =($F15-$E15)/5 -> 1712.6 | M32: 1712.6 | N32: 1712.6 | P32: N01 | Q32: =IFERROR(IF('Modelling inputs'!$E$30="Default",VLOOKUP(P32,'BAICR Charge Lookup'!A:F,6,FALSE),IF('Modelling inputs'!$E$30="Alternate charge",VLOOKUP(P32,'BAICR Charge Lookup'!A:G,7,FALSE))),0) -> 14
B33: =B16 -> Office | C33: m2 GFA | D33: 6128313 | E33: =($E16-$D16)/5 -> 97645 | F33: 97645 | G33: 97645 | H33: 97645 | I33: 97645 | J33: 110740 | K33: 110740 | L33: =($F16-$E16)/5 -> 110740 | M33: 110740 | N33: 110740 | P33: H01 | Q33: =IFERROR(IF('Modelling inputs'!$E$30="Default",VLOOKUP(P33,'BAICR Charge Lookup'!A:F,6,FALSE),IF('Modelling inputs'!$E$30="Alternate charge",VLOOKUP(P33,'BAICR Charge Lookup'!A:G,7,FALSE))),0) -> 104
B34: =B17 -> Retail | C34: m2 GFA | D34: 3590588 | E34: =($E17-$D17)/5 -> 49204.2 | F34: 49204.2 | G34: 49204.2 | H34: 49204.2 | I34: 49204.2 | J34: 57905.8 | K34: 57905.8 | L34: =($F17-$E17)/5 -> 57905.8 | M34: 57905.8 | N34: 57905.8 | P34: G05 | Q34: =IFERROR(IF('Modelling inputs'!$E$30="Default",VLOOKUP(P34,'BAICR Charge Lookup'!A:F,6,FALSE),IF('Modelling inputs'!$E$30="Alternate charge",VLOOKUP(P34,'BAICR Charge Lookup'!A:G,7,FALSE))),0) -> 144
B35: =B18 -> Showroom, Retail Warehouse & Bulky Goods | C35: m2 GFA | D35: 921490 | E35: =($E18-$D18)/5 -> 11317.2 | F35: 11317.2 | G35: 11317.2 | H35: 11317.2 | I35: 11317.2 | J35: 10158.4 | K35: 10158.4 | L35: =($F18-$E18)/5 -> 10158.4 | M35: 10158.4 | N35: 10158.4 | P35: F06 | Q35: =IFERROR(IF('Modelling inputs'!$E$30="Default",VLOOKUP(P35,'BAICR Charge Lookup'!A:F,6,FALSE),IF('Modelling inputs'!$E$30="Alternate charge",VLOOKUP(P35,'BAICR Charge Lookup'!A:G,7,FALSE))),0) -> 104
B36: =B19 -> Warehouse, Bulk Stores & Logistics | C36: m2 GFA | D36: 8403730 | E36: =($E19-$D19)/5 -> 129699.2 | F36: 129699.2 | G36: 129699.2 | H36: 129699.2 | I36: 129699.2 | J36: 169151.8 | K36: 169151.8 | L36: =($F19-$E19)/5 -> 169151.8 | M36: 169151.8 | N36: 169151.8 | P36: N05 | Q36: =IFERROR(IF('Modelling inputs'!$E$30="Default",VLOOKUP(P36,'BAICR Charge Lookup'!A:F,6,FALSE),IF('Modelling inputs'!$E$30="Alternate charge",VLOOKUP(P36,'BAICR Charge Lookup'!A:G,7,FALSE))),0) -> 14
B37: =B20 -> Rural | C37: m2 GFA | D37: 4666 | E37: =($E20-$D20)/5 -> 96.6 | F37: 96.6 | G37: 96.6 | H37: 96.6 | I37: 96.6 | J37: 22.2 | K37: 22.2 | L37: =($F20-$E20)/5 -> 22.2 | M37: 22.2 | N37: 22.2 | P37: Q01 | Q37: =IFERROR(IF('Modelling inputs'!$E$30="Default",VLOOKUP(P37,'BAICR Charge Lookup'!A:F,6,FALSE),IF('Modelling inputs'!$E$30="Alternate charge",VLOOKUP(P37,'BAICR Charge Lookup'!A:G,7,FALSE))),0) -> 0
A39: 2.3 | B39: Anticipated Revenue - Applied Charge (3)
B41: Development type | C41: Unit of demand | D41: 2016 | E41: 2017 | F41: 2018 | G41: 2019 | H41: 2020 | I41: 2021 | J41: 2022 | K41: 2023 | L41: 2024 | M41: 2025 | N41: 2026
B42: =B8 -> Food Services, Arts & Recreation | C42: =C8 -> m2 GFA | D42: N/A | E42: =E25*$Q25 -> 3474662.4 | F42: =F25*$Q25 -> 3474662.4 | G42: 3474662.4 | H42: =H25*$Q25 -> 3474662.4 | I42: 3474662.4 | J42: 2636438.4 | K42: 2636438.4 | L42: 2636438.4 | M42: 2636438.4 | N42: 2636438.4
B43: =B9 -> Community - Education | C43: m2 GFA | D43: N/A | E43: =E26*$Q26 -> 8593416 | F43: 8593416 | G43: 8593416 | H43: 8593416 | I43: 8593416 | J43: 9155910.4 | K43: 9155910.4 | L43: 9155910.4 | M43: 9155910.4 | N43: 9155910.4
B44: =B10 -> Community - Health | C44: m2 GFA | D44: N/A | E44: 3990064 | F44: 3990064 | G44: 3990064 | H44: 3990064 | I44: 3990064 | J44: 3463158.4 | K44: 3463158.4 | L44: 3463158.4 | M44: 3463158.4 | N44: 3463158.4
B45: =B11 -> Community - Other | C45: m2 GFA | D45: N/A | E45: 786052.8 | F45: 786052.8 | G45: 786052.8 | H45: 786052.8 | I45: 786052.8 | J45: 820216 | K45: 820216 | L45: 820216 | M45: 820216 | N45: 820216
B46: =B12 -> Industry - General | C46: m2 GFA | D46: N/A | E46: 106394.4 | F46: 106394.4 | G46: 106394.4 | H46: 106394.4 | I46: 106394.4 | J46: 119473.2 | K46: 119473.2 | L46: 119473.2 | M46: 119473.2 | N46: 119473.2
B47: =B13 -> Industry - Heavy | C47: m2 GFA | D47: N/A | E47: 245976 | F47: 245976 | G47: 245976 | H47: 245976 | I47: 245976 | J47: 332508 | K47: 332508 | L47: 332508 | M47: 332508 | N47: 332508
B48: =B14 -> Industry - Light | C48: m2 GFA | D48: N/A | E48: 826666.4 | F48: 826666.4 | G48: 826666.4 | H48: 826666.4 | I48: 826666.4 | J48: 835612.4 | K48: 835612.4 | L48: 835612.4 | M48: 835612.4 | N48: 835612.4
B49: =B15 -> Industry - Other | C49: m2 GFA | D49: N/A | E49: 18239.2 | F49: 18239.2 | G49: 18239.2 | H49: 18239.2 | I49: 18239.2 | J49: 23976.4 | K49: 23976.4 | L49: 23976.4 | M49: 23976.4 | N49: 23976.4
B50: =B16 -> Office | C50: m2 GFA | D50: N/A | E50: 10155080 | F50: 10155080 | G50: 10155080 | H50: 10155080 | I50: 10155080 | J50: 11516960 | K50: 11516960 | L50: 11516960 | M50: 11516960 | N50: 11516960
B51: =B17 -> Retail | C51: m2 GFA | D51: N/A | E51: 7085404.8 | F51: 7085404.8 | G51: 7085404.8 | H51: 7085404.8 | I51: 7085404.8 | J51: 8338435.2 | K51: 8338435.2 | L51: 8338435.2 | M51: 8338435.2 | N51: 8338435.2
B52: =B18 -> Showroom, Retail Warehouse & Bulky Goods | C52: m2 GFA | D52: N/A | E52: 1176988.8 | F52: 1176988.8 | G52: 1176988.8 | H52: 1176988.8 | I52: 1176988.8 | J52: 1056473.6 | K52: 1056473.6 | L52: 1056473.6 | M52: 1056473.6 | N52: 1056473.6
B53: =B19 -> Warehouse, Bulk Stores & Logistics | C53: m2 GFA | D53: N/A | E53: 1815788.8 | F53: 1815788.8 | G53: 1815788.8 | H53: 1815788.8 | I53: 1815788.8 | J53: 2368125.2 | K53: 2368125.2 | L53: 2368125.2 | M53: 2368125.2 | N53: 2368125.2
B54: =B20 -> Rural | C54: m2 GFA | D54: N/A | E54: 0 | F54: 0 | G54: 0 | H54: 0 | I54: 0 | J54: 0 | K54: 0 | L54: 0 | M54: 0 | N54: 0
B55: Total | C55: N/A | D55: N/A | E55: =SUM(E42:E54) -> 38274733.6 | F55: =SUM(F42:F54) -> 38274733.6 | G55: 38274733.6 | H55: 38274733.6 | I55: 38274733.6 | J55: 40667287.2 | K55: 40667287.2 | L55: 40667287.2 | M55: 40667287.2 | N55: 40667287.2
A57: Notes:
A58: (1) Growth figures are based on land use counts and growth rates sourced from LGIP planning assumptions.
A59: (2) Unit of demand is based on the current Adopted Infrastructure Charge Resolution.
A60: (3) As it is Councils current proactice not to index charges, no indexation has been applied

Sheet Growth (Impervious Area)
A1: Local Government Infrastructure Plan
A2: Brisbane City Council
A3: =Coversheet!C8 -> Effective 10 December 2021 | D3: Input
D4: Formula
A5: 3.1 | B5: Anticipated Impervious Area Growth - Census Year
B7: Development type(1) | C7: Unit of demand(2) | D7: 2016 | E7: 2021 | F7: 2026
B8: Non-residential Stormwater Impervious Area | C8: Impervious area in m2 | D8: 50334875.41 | E8: 52236427.73 | F8: 54436481.21
A10: 3.2 | B10: Anticipated Non Residential Growth - Annualised
B12: Development type | C12: Unit of demand | D12: 2016 | E12: 2017 | F12: 2018 | G12: 2019 | H12: 2020 | I12: 2021 | J12: 2022 | K12: 2023 | L12: 2024 | M12: 2025 | N12: 2026 | P12: Charge Code | Q12: Applied Charge
B13: Non-residential Stormwater Impervious Area | C13: Impervious area in m2 | D13: =D8 -> 50334875.41 | E13: =($E8-$D8)/5 -> 380310.4637 | F13: =($E8-$D8)/5 -> 380310.4637 | G13: 380310.4637 | H13: 380310.4637 | I13: 380310.4637 | J13: =($F8-$E8)/5 -> 440010.6964 | K13: =($F8-$E8)/5 -> 440010.6964 | L13: 440010.6964 | M13: 440010.6964 | N13: 440010.6964 | P13: W01 | Q13: =IFERROR(IF('Modelling inputs'!$E$30="Default",VLOOKUP(P13,'BAICR Charge Lookup'!A:F,6,FALSE),IF('Modelling inputs'!$E$30="Alternate charge",VLOOKUP(P13,'BAICR Charge Lookup'!A:G,7,FALSE))),0) -> 10
A15: 2.3 | B15: Anticipated Revenue - Applied Charge (3)
B17: Development type | C17: Unit of demand | D17: 2016 | E17: 2017 | F17: 2018 | G17: 2019 | H17: 2020 | I17: 2021 | J17: 2022 | K17: 2023 | L17: 2024 | M17: 2025 | N17: 2026
B18: Non-residential Stormwater Impervious Area | C18: Impervious area in m2 | D18: N/A | E18: =E13*$Q13 -> 3803104.637 | F18: =F13*$Q13 -> 3803104.637 | G18: 3803104.637 | H18: 3803104.637 | I18: 3803104.637 | J18: 4400106.964 | K18: 4400106.964 | L18: 4400106.964 | M18: 4400106.964 | N18: 4400106.964
A20: Notes:
A21: (1) Growth figures are based on impervious area in non-residential city plan zones. Growth in centre, mixed use and residential zones have been excluded.
A22: (2) Unit of demand is based on the current Adopted Infrastructure Charge Resolution.
A23: (3) As it is Councils current proactice not to index charges, no indexation has been applied

Sheet BAICR Charge Lookup
A1: Local Government Infrastructure Plan
A2: Brisbane City Council
A3: =Coversheet!C8 -> Effective 10 December 2021
A5: Charges categories, sub-categories, demand units, and applied adopted charge (AAC) rate - Lookup table
A6: Brisbane Adopted Infrastructure Charges Resolution (No.5) 2015
A8: 4.1 Reconfiguration of a Lot
A9: Code | B9: Category | C9: Sub Category | D9: Demand Unit | F9: AICR5 Charge | G9: Alt. Charge
A10: A01 | B10: 01 Residential (Reconfiguration of a Lot) | C10: Residential Lot | D10: Number of residential lots | F10: 14000 | G10: 0
A11: A02 | B11: 02 Non-Residential (Reconfiguration of a Lot) | C11: Non-Residential Lot | D11: Number of non-residential lots | F11: 14000 | G11: 0
A13: 4.2 Material Change of Use (Residential - Transport, Community Purposes, and Waterways)
A14: Code | B14: Category | C14: Sub Category | D14: Demand Unit | F14: AICR5 Charge | G14: Alt. Charge
A15: B01 | B15: 01 Residential (Material Change of Use/Building Work) | C15: Caretaker's accommodation - 1 or 2 bedroom dwelling | D15: Number of dwellings: 1 or 2 bedroom dwelling | F15: 10000 | G15: 0
A16: B02 | B16: 01 Residential (Material Change of Use/Building Work) | C16: Caretaker's accommodation - 3 or more bedroom dwelling | D16: Number of dwellings: 3 or more bedroom dwelling | F16: 14000 | G16: 0
A17: B11 | B17: 01 Residential (Material Change of Use/Building Work) | C17: Dwelling house - 1 or 2 bedroom dwelling | D17: Number of dwellings: 1 or 2 bedroom dwelling | F17: 10000 | G17: 0
A18: B12 | B18: 01 Residential (Material Change of Use/Building Work) | C18: Dwelling house - 3 or more bedroom dwelling | D18: Number of dwellings: 3 or more bedroom dwelling | F18: 14000 | G18: 0
A19: B21 | B19: 01 Residential (Material Change of Use/Building Work) | C19: Dual occupancy - 1 or 2 bedroom dwelling | D19: Number of dwellings: 1 or 2 bedroom dwelling | F19: 10000 | G19: 0
A20: B22 | B20: 01 Residential (Material Change of Use/Building Work) | C20: Dual occupancy - 3 or more bedroom dwelling | D20: Number of dwellings: 3 or more bedroom dwelling | F20: 14000 | G20: 0
A21: B31 | B21: 01 Residential (Material Change of Use/Building Work) | C21: Multiple dwelling - 1 or 2 bedroom dwelling | D21: Number of dwellings: 1 or 2 bedroom dwelling | F21: 10000 | G21: 0
A22: B32 | B22: 01 Residential (Material Change of Use/Building Work) | C22: Multiple dwelling - 3 or more bedroom dwelling | D22: Number of dwellings: 3 or more bedroom dwelling | F22: 14000 | G22: 0
A23: C01 | B23: 02 Residential Accommodation (short term) | C23: Hotel (residential component) - Bedroom that is not within a suite | D23: Number of bedrooms: Bedroom that is not within a suite | F23: 4000 | G23: 0
A24: C02 | B24: 02 Residential Accommodation (short term) | C24: Hotel (residential component) - Suite with 1 or 2 bedrooms | D24: Number of suites: Suite with 1 or 2 bedrooms | F24: 4000 | G24: 0
A25: C03 | B25: 02 Residential Accommodation (short term) | C25: Hotel (residential component) - Suite with 3 or more bedrooms | D25: Number of suites: Suite with 3 or more bedrooms | F25: 6000 | G25: 0
A26: C11 | B26: 02 Residential Accommodation (short term) | C26: Short-term accommodation - Bedroom that is not within a suite | D26: Number of bedrooms: Bedroom that is not within a suite | F26: 4000 | G26: 0
A27: C12 | B27: 02 Residential Accommodation (short term) | C27: Short-term accommodation - Suite with 1 or 2 bedrooms | D27: Number of suites: Suite with 1 or 2 bedrooms | F27: 4000 | G27: 0
A28: C13 | B28: 02 Residential Accommodation (short term) | C28: Short-term accommodation - Suite with 3 or more bedrooms | D28: Number of suites: Suite with 3 or more bedrooms | F28: 6000 | G28: 0
A29: C21 | B29: 02 Residential Accommodation (short term) | C29: Tourist Park - 1 or 2 tent or caravan sites | D29: Number of sites: 1 or 2 tent or caravan site | F29: 4000 | G29: 0
A30: C22 | B30: 02 Residential Accommodation (short term) | C30: Tourist Park - 3 or more tent or caravan sites | D30: Number of sites: 3 or more tent or caravan site | F30: 6000 | G30: 0
A31: C23 | B31: 02 Residential Accommodation (short term) | C31: Tourist Park - 1 or 2 bedroom cabin | D31: Number of cabins: 1 or 2 bedroom cabin | F31: 4000 | G31: 0
A32: C24 | B32: 02 Residential Accommodation (short term) | C32: Tourist Park - 3 or more bedroom cabin | D32: Number of cabins: 3 or more bedroom cabin | F32: 6000 | G32: 0
A33: D01 | B33: 03 Residential Accommodation (long term) | C33: Community residence - Bedroom that is not within a suite | D33: Number of bedrooms: Bedroom that is not within a suite | F33: 8000 | G33: 0
A34: D02 | B34: 03 Residential Accommodation (long term) | C34: Community residence - Suite with 1 or 2 bedrooms | D34: Number of suites: Suite with 1 or 2 bedrooms | F34: 8000 | G34: 0
A35: D03 | B35: 03 Residential Accommodation (long term) | C35: Community residence - Suite with 3 or more bedrooms | D35: Number of suites: Suite with 3 or more bedrooms | F35: 12000 | G35: 0
A36: D11 | B36: 03 Residential Accommodation (long term) | C36: Hostel - Bedroom that is not within a suite | D36: Number of bedrooms: Bedroom that is not within a suite | F36: 8000 | G36: 0
A37: D12 | B37: 03 Residential Accommodation (long term) | C37: Hostel - Suite with 1 or 2 bedrooms | D37: Number of suites: Suite with 1 or 2 bedrooms | F37: 8000 | G37: 0
A38: D13 | B38: 03 Residential Accommodation (long term) | C38: Hostel - Suite with 3 or more bedrooms | D38: Number of suites: Suite with 3 or more bedrooms | F38: 12000 | G38: 0
A39: D21 | B39: 03 Residential Accommodation (long term) | C39: On-site student accommodation ancillary to educational establishment - Bedroom that is not within a suite | D39: Number of bedrooms: Bedroom that is not within a suite | F39: 4000 | G39: 0
A40: D22 | B40: 03 Residential Accommodation (long term) | C40: On-site student accommodation ancillary to educational establishment - Suite with 1 or 2 bedrooms | D40: Number of suites: Suite with 1 or 2 bedrooms | F40: N/A | G40: 0
A41: D23 | B41: 03 Residential Accommodation (long term) | C41: On-site student accommodation ancillary to educational establishment - Suite with 1 bedroom | D41: Number of suites: Suite with 1 bedroom | F41: 4000 | G41: 0
A42: D24 | B42: 03 Residential Accommodation (long term) | C42: On-site student accommodation ancillary to educational establishment - Suite with 2 bedrooms | D42: Number of suites: Suite with 2 bedrooms | F42: 8000 | G42: 0
A43: D25 | B43: 03 Residential Accommodation (long term) | C43: On-site student accommodation ancillary to educational establishment - Suite with 3 or more bedrooms | D43: Number of suites: Suite with 3 or more bedrooms | F43: 12000 | G43: 0
A44: D31 | B44: 03 Residential Accommodation (long term) | C44: Relocatable home park - 1 or 2 bedroom relocatable dwelling site | D44: Number of sites: 1 or 2 bedroom relocatable dwelling site | F44: 8000 | G44: 0
A45: D32 | B45: 03 Residential Accommodation (long term) | C45: Relocatable home park - 3 or more bedroom relocatable dwelling site | D45: Number of sites: 3 or more bedroom relocatable dwelling site | F45: 12000 | G45: 0
A46: D41 | B46: 03 Residential Accommodation (long term) | C46: Retirement facility - Bedroom that is not within a suite | D46: Number of bedrooms: Bedroom that is not within a suite | F46: 8000 | G46: 0
A47: D42 | B47: 03 Residential Accommodation (long term) | C47: Retirement facility - Suite with 1 or 2 bedrooms | D47: Number of suites: Suite with 1 or 2 bedrooms | F47: 8000 | G47: 0
A48: D43 | B48: 03 Residential Accommodation (long term) | C48: Retirement facility - Suite with 3 or more bedrooms | D48: Number of suites: Suite with 3 or more bedrooms | F48: 12000 | G48: 0
A49: D51 | B49: 03 Residential Accommodation (long term) | C49: Rooming accommodation (off-site student accommodation) - Bedroom that is not within a suite | D49: Number of bedrooms: Bedroom that is not within a suite | F49: 4000 | G49: 0
A50: D52 | B50: 03 Residential Accommodation (long term) | C50: Rooming accommodation (off-site student accommodation) - Suite with 1 or 2 bedrooms | D50: Number of suites: Suite with 1 or 2 bedrooms | F50: N/A | G50: 0
A51: D53 | B51: 03 Residential Accommodation (long term) | C51: Rooming accommodation (off-site student accommodation) - Suite with 1 bedroom | D51: Number of suites: Suite with 1 bedroom | F51: 4000 | G51: 0
A52: D54 | B52: 03 Residential Accommodation (long term) | C52: Rooming accommodation (off-site student accommodation) - Suite with 2 bedrooms | D52: Number of suites: Suite with 2 bedrooms | F52: 8000 | G52: 0
A53: D55 | B53: 03 Residential Accommodation (long term) | C53: Rooming accommodation (off-site student accommodation) - Suite with 3 or more bedrooms | D53: Number of suites: Suite with 3 or more bedrooms | F53: 12000 | G53: 0
A55: 4.3 Material Change of Use (Non-Residential - Transport, and Community Purposes)
A56: Code | B56: Category | C56: Sub Category | D56: Demand Unit | F56: AICR5 Charge | G56: Alt. Charge
A57: E01 | B57: 04 Non-Residential Places of assembly | C57: Club | D57: m2 GFA | F57: 34 | G57: 0
A58: E02 | B58: 04 Non-Residential Places of assembly | C58: Community use | D58: m2 GFA | F58: 34 | G58: 0
A59: E03 | B59: 04 Non-Residential Places of assembly | C59: Function facility | D59: m2 GFA | F59: 34 | G59: 0
A60: E04 | B60: 04 Non-Residential Places of assembly | C60: Funeral parlour | D60: m2 GFA | F60: 34 | G60: 0
A61: E05 | B61: 04 Non-Residential Places of assembly | C61: Place of worship | D61: m2 GFA | F61: 34 | G61: 0
A62: F01 | B62: 05 Non-Residential Commercial (bulk goods) | C62: Agricultural supplies store | D62: m2 GFA | F62: 104 | G62: 0
A63: F02 | B63: 05 Non-Residential Commercial (bulk goods) | C63: Bulk landscape supplies | D63: m2 GFA | F63: 104 | G63: 0
A64: F03 | B64: 05 Non-Residential Commercial (bulk goods) | C64: Garden centre | D64: m2 GFA | F64: 104 | G64: 0
A65: F04 | B65: 05 Non-Residential Commercial (bulk goods) | C65: Hardware and trade supplies | D65: m2 GFA | F65: 104 | G65: 0
A66: F05 | B66: 05 Non-Residential Commercial (bulk goods) | C66: Outdoor sales | D66: m2 GFA | F66: 104 | G66: 0
A67: F06 | B67: 05 Non-Residential Commercial (bulk goods) | C67: Showroom | D67: m2 GFA | F67: 104 | G67: 0
A68: G01 | B68: 06 Non-Residential Commercial (retail) | C68: Adult store | D68: m2 GFA | F68: 144 | G68: 0
A69: G02 | B69: 06 Non-Residential Commercial (retail) | C69: Food and drink outlet | D69: m2 GFA | F69: 144 | G69: 0
A70: G03 | B70: 06 Non-Residential Commercial (retail) | C70: Service industry | D70: m2 GFA | F70: 144 | G70: 0
A71: G04 | B71: 06 Non-Residential Commercial (retail) | C71: Service station | D71: m2 GFA | F71: 144 | G71: 0
A72: G05 | B72: 06 Non-Residential Commercial (retail) | C72: Shop | D72: m2 GFA | F72: 144 | G72: 0
A73: G06 | B73: 06 Non-Residential Commercial (retail) | C73: Shopping centre | D73: m2 GFA | F73: 144 | G73: 0
A74: H01 | B74: 07 Non-Residential Commercial (office) | C74: Office | D74: m2 GFA | F74: 104 | G74: 0
A75: H02 | B75: 07 Non-Residential Commercial (office) | C75: Sales Office | D75: m2 GFA | F75: 104 | G75: 0
A76: J01 | B76: 08 Non-Residential Education facility except an educational establishment for the Flying Start for Children program | C76: Child care centre | D76: m2 GFA | F76: 104 | G76: 0
A77: J02 | B77: 08 Non-Residential Education facility except an educational establishment for the Flying Start for Children program | C77: Community care centre | D77: m2 GFA | F77: 104 | G77: 0
A78: J03 | B78: 08 Non-Residential Education facility except an educational establishment for the Flying Start for Children program | C78: Educational establishment except an educational establishment for the Flying Start for Children program | D78: m2 GFA | F78: 104 | G78: 0
A79: K01 | B79: 09 Non-Residential Educational establishment for the Flying Start for Children program | C79: Educational establishment for the Flying Start for Queensland Children program | D79: m2 GFA | F79: 0 | G79: 0
A80: L01 | B80: 10 Non-Residential Entertainment | C80: Hotel (non-residential component) | D80: m2 GFA | F80: 140 | G80: 0
A81: L02 | B81: 10 Non-Residential Entertainment | C81: Nightclub | D81: m2 GFA | F81: 140 | G81: 0
A82: L03 | B82: 10 Non-Residential Entertainment | C82: Theatre | D82: m2 GFA | F82: 140 | G82: 0
A83: M01 | B83: 11 Non-Residential Indoor sport and recreational facility | C83: Indoor sport and recreation (facility only) | D83: m2 GFA | F83: 140 | G83: 0
A84: M02 | B84: 11 Non-Residential Indoor sport and recreational facility | C84: Indoor sport and recreation (court areas) | D84: m2 GFA | F84: 15 | G84: 0
A85: N01 | B85: 12 Non-Residential Industry | C85: Low impact industry | D85: m2 GFA | F85: 14 | G85: 0
A86: N02 | B86: 12 Non-Residential Industry | C86: Medium impact industry | D86: m2 GFA | F86: 14 | G86: 0
A87: N03 | B87: 12 Non-Residential Industry | C87: Research and technology industry | D87: m2 GFA | F87: 14 | G87: 0
A88: N04 | B88: 12 Non-Residential Industry | C88: Rural industry | D88: m2 GFA | F88: 14 | G88: 0
A89: N05 | B89: 12 Non-Residential Industry | C89: Warehouse | D89: m2 GFA | F89: 14 | G89: 0
A90: N06 | B90: 12 Non-Residential Industry | C90: Waterfront and marine industry | D90: m2 GFA | F90: 14 | G90: 0
A91: P01 | B91: 13 Non-Residential High impact industry | C91: High impact industry | D91: m2 GFA | F91: 30 | G91: 0
A92: P02 | B92: 13 Non-Residential High impact industry | C92: Noxious and hazardous industries | D92: m2 GFA | F92: 30 | G92: 0
A93: Q01 | B93: 14 Non-Residential Low impact rural | C93: Animal husbandry | D93: m2 GFA | F93: 0 | G93: 0
A94: Q02 | B94: 14 Non-Residential Low impact rural | C94: Cropping | D94: m2 GFA | F94: 0 | G94: 0
A95: Q03 | B95: 14 Non-Residential Low impact rural | C95: Permanent plantations | D95: m2 GFA | F95: 0 | G95: 0
A96: Q04 | B96: 14 Non-Residential Low impact rural | C96: Wind farms | D96: m2 GFA | F96: 0 | G96: 0
A97: R01 | B97: 15 Non-Residential High impact rural | C97: Aquaculture | D97: m2 GFA | F97: 10 | G97: 0
A98: R02 | B98: 15 Non-Residential High impact rural | C98: Intensive animal industries | D98: m2 GFA | F98: 10 | G98: 0
A99: R03 | B99: 15 Non-Residential High impact rural | C99: Intensive horticulture | D99: m2 GFA | F99: 10 | G99: 0
A100: R04 | B100: 15 Non-Residential High impact rural | C100: Wholesale nursery | D100: m2 GFA | F100: 10 | G100: 0
A101: R05 | B101: 15 Non-Residential High impact rural | C101: Winery | D101: m2 GFA | F101: 10 | G101: 0
A102: S01 | B102: 16 Non-Residential Essential services | C102: Correctional facility | D102: m2 GFA | F102: 104 | G102: 0
A103: S02 | B103: 16 Non-Residential Essential services | C103: Emergency services | D103: m2 GFA | F103: 104 | G103: 0
A104: S03 | B104: 16 Non-Residential Essential services | C104: Health care services | D104: m2 GFA | F104: 104 | G104: 0
A105: S04 | B105: 16 Non-Residential Essential services | C105: Hospital | D105: m2 GFA | F105: 104 | G105: 0
A106: S05 | B106: 16 Non-Residential Essential services | C106: Residential care facility | D106: m2 GFA | F106: 104 | G106: 0
A107: S06 | B107: 16 Non-Residential Essential services | C107: Veterinary services | D107: m2 GFA | F107: 104 | G107: 0
A108: T01 | B108: 17 Non-Residential Minor uses | C108: Advertising device | D108: m2 GFA | F108: 0 | G108: 0
A109: T02 | B109: 17 Non-Residential Minor uses | C109: Cemetery | D109: m2 GFA | F109: 0 | G109: 0
A110: T03 | B110: 17 Non-Residential Minor uses | C110: Home based business | D110: m2 GFA | F110: 0 | G110: 0
A111: T04 | B111: 17 Non-Residential Minor uses | C111: Landing | D111: m2 GFA | F111: 0 | G111: 0
A112: T05 | B112: 17 Non-Residential Minor uses | C112: Market | D112: m2 GFA | F112: 0 | G112: 0
A113: T06 | B113: 17 Non-Residential Minor uses | C113: Outdoor lighting | D113: m2 GFA | F113: 0 | G113: 0
A114: T07 | B114: 17 Non-Residential Minor uses | C114: Park | D114: m2 GFA | F114: 0 | G114: 0
A115: T08 | B115: 17 Non-Residential Minor uses | C115: Roadside stalls | D115: m2 GFA | F115: 0 | G115: 0
A116: T09 | B116: 17 Non-Residential Minor uses | C116: Telecommunications facility | D116: m2 GFA | F116: 0 | G116: 0
A117: T10 | B117: 17 Non-Residential Minor uses | C117: Temporary use | D117: m2 GFA | F117: 0 | G117: 0
A118: U01 | B118: Other uses | C118: Brothel | D118: m2 GFA | F118: User Defined | G118: 0
A119: U02 | B119: Other uses | C119: Car wash | D119: m2 GFA | F119: User Defined | G119: 0
A120: U03 | B120: Other uses | C120: Environment Facility | D120: m2 GFA | F120: User Defined | G120: 0
A121: U04 | B121: Other uses | C121: Major electricity infrastructure | D121: m2 GFA | F121: User Defined | G121: 0
A122: U05 | B122: Other uses | C122: Nature-based tourism | D122: m2 GFA | F122: User Defined | G122: 0
A123: U06 | B123: Other uses | C123: Substation | D123: m2 GFA | F123: User Defined | G123: 0
A124: U07 | B124: Other uses | C124: Transport depot | D124: m2 GFA | F124: User Defined | G124: 0
A125: U08 | B125: Other uses | C125: Other | D125: m2 GFA | F125: User Defined | G125: 0
A126: V01 | B126: Specialised uses | C126: Air services | D126: m2 GFA | F126: User Defined | G126: 0
A127: V02 | B127: Specialised uses | C127: Animal keeping | D127: m2 GFA | F127: User Defined | G127: 0
A128: V03 | B128: Specialised uses | C128: Car park | D128: m2 GFA | F128: User Defined | G128: 0
A129: V04 | B129: Specialised uses | C129: Crematorium | D129: m2 GFA | F129: User Defined | G129: 0
A130: V05 | B130: Specialised uses | C130: Extractive industry | D130: m2 GFA | F130: User Defined | G130: 0
A131: V06 | B131: Specialised uses | C131: Major sport, recreation and entertainment facility | D131: m2 GFA | F131: User Defined | G131: 0
A132: V07 | B132: Specialised uses | C132: Motor sport | D132: m2 GFA | F132: User Defined | G132: 0
A133: V08 | B133: Specialised uses | C133: Non-resident workforce accommodation | D133: m2 GFA | F133: User Defined | G133: 0
A134: V09 | B134: Specialised uses | C134: Outdoor sport and recreation | D134: m2 GFA | F134: User Defined | G134: 0
A135: V10 | B135: Specialised uses | C135: Port services | D135: m2 GFA | F135: User Defined | G135: 0
A136: V11 | B136: Specialised uses | C136: Tourist attraction | D136: m2 GFA | F136: User Defined | G136: 0
A137: V12 | B137: Specialised uses | C137: Utility installation | D137: m2 GFA | F137: User Defined | G137: 0
A139: 4.4 Material Change of Use (Non-Residential - Waterways)
A140: Code | B140: Category | C140: Sub Category | D140: Demand Unit | F140: AICR5 Charge | G140: Alt. Charge
A141: W01 | B141: 18 Non-Residential Stormwater | C141: Stormwater impervious area | D141: Impervious area in m2 | F141: 10 | G141: 0

Sheet Adopted Charge Revenue Forecast
A1: Local Government Infrastructure Plan
A2: Brisbane City Council
A3: =Coversheet!C8 -> Effective 10 December 2021 | I3: Input
I4: Formula
A5: 5.1 | B5: Anticipated infrastructure charges revenue ($'000)
B6: =IF('Modelling inputs'!E30="Default","Brisbane Adopted Infrastructure Charge Resolution (No.5) 2015",IF('Modelling inputs'!E30="Alternate charge","Alternate charging scenario: "&'Modelling inputs'!G30,"ERROR")) -> Brisbane Adopted Infrastructure Charge Resolution (No.5) 2015
D8: Model year | F8: 0 | G8: 1 | H8: 2 | I8: 3 | J8: 4 | K8: 5 | L8: 6 | M8: 7 | N8: 8 | O8: 9 | P8: 10
B9: Development type | D9: 2016 NPV | F9: 2016 (1) | G9: 2017 | H9: 2018 | I9: 2019 | J9: 2020 | K9: 2021 | L9: 2022 | M9: 2023 | N9: 2024 | O9: 2025 | P9: 2026
B10: Residential | D10: =F10+NPV(WACC,G10:P10) -> 523242.8234 | F10: 0 | G10: =HLOOKUP(G9,'Growth (Residential)'!$E$35:$N$46,12,FALSE)/1000 -> 76019.6 | H10: =HLOOKUP(H9,'Growth (Residential)'!$E$35:$N$46,12,FALSE)/1000 -> 76019.6 | I10: =HLOOKUP(I9,'Growth (Residential)'!$E$35:$N$46,12,FALSE)/1000 -> 76019.6 | J10: =HLOOKUP(J9,'Growth (Residential)'!$E$35:$N$46,12,FALSE)/1000 -> 76019.6 | K10: =HLOOKUP(K9,'Growth (Residential)'!$E$35:$N$46,12,FALSE)/1000 -> 76019.6 | L10: =HLOOKUP(L9,'Growth (Residential)'!$E$35:$N$46,12,FALSE)/1000 -> 63819.2 | M10: =HLOOKUP(M9,'Growth (Residential)'!$E$35:$N$46,12,FALSE)/1000 -> 63819.2 | N10: =HLOOKUP(N9,'Growth (Residential)'!$E$35:$N$46,12,FALSE)/1000 -> 63819.2 | O10: =HLOOKUP(O9,'Growth (Residential)'!$E$35:$N$46,12,FALSE)/1000 -> 63819.2 | P10: =HLOOKUP(P9,'Growth (Residential)'!$E$35:$N$46,12,FALSE)/1000 -> 63819.2
B11: Non-residential | D11: =F11+NPV(WACC,G11:P11) -> 290492.162 | F11: 0 | G11: =HLOOKUP(G9,'Growth (Non-Residential)'!$E$41:$N$55,15,FALSE)/1000 -> 38274.7336 | H11: =HLOOKUP(H9,'Growth (Non-Residential)'!$E$41:$N$55,15,FALSE)/1000 -> 38274.7336 | I11: =HLOOKUP(I9,'Growth (Non-Residential)'!$E$41:$N$55,15,FALSE)/1000 -> 38274.7336 | J11: =HLOOKUP(J9,'Growth (Non-Residential)'!$E$41:$N$55,15,FALSE)/1000 -> 38274.7336 | K11: =HLOOKUP(K9,'Growth (Non-Residential)'!$E$41:$N$55,15,FALSE)/1000 -> 38274.7336 | L11: =HLOOKUP(L9,'Growth (Non-Residential)'!$E$41:$N$55,15,FALSE)/1000 -> 40667.2872 | M11: =HLOOKUP(M9,'Growth (Non-Residential)'!$E$41:$N$55,15,FALSE)/1000 -> 40667.2872 | N11: =HLOOKUP(N9,'Growth (Non-Residential)'!$E$41:$N$55,15,FALSE)/1000 -> 40667.2872 | O11: =HLOOKUP(O9,'Growth (Non-Residential)'!$E$41:$N$55,15,FALSE)/1000 -> 40667.2872 | P11: =HLOOKUP(P9,'Growth (Non-Residential)'!$E$41:$N$55,15,FALSE)/1000 -> 40667.2872
B12: Non-residential (Stormwater) | D12: =F12+NPV(WACC,G12:P12) -> 30002.74844 | F12: 0 | G12: =HLOOKUP(G9,'Growth (Impervious Area)'!$E$17:$N$18,2,FALSE)/1000 -> 3803.104637 | H12: =HLOOKUP(H9,'Growth (Impervious Area)'!$E$17:$N$18,2,FALSE)/1000 -> 3803.104637 | I12: =HLOOKUP(I9,'Growth (Impervious Area)'!$E$17:$N$18,2,FALSE)/1000 -> 3803.104637 | J12: =HLOOKUP(J9,'Growth (Impervious Area)'!$E$17:$N$18,2,FALSE)/1000 -> 3803.104637 | K12: =HLOOKUP(K9,'Growth (Impervious Area)'!$E$17:$N$18,2,FALSE)/1000 -> 3803.104637 | L12: =HLOOKUP(L9,'Growth (Impervious Area)'!$E$17:$N$18,2,FALSE)/1000 -> 4400.106964 | M12: =HLOOKUP(M9,'Growth (Impervious Area)'!$E$17:$N$18,2,FALSE)/1000 -> 4400.106964 | N12: =HLOOKUP(N9,'Growth (Impervious Area)'!$E$17:$N$18,2,FALSE)/1000 -> 4400.106964 | O12: =HLOOKUP(O9,'Growth (Impervious Area)'!$E$17:$N$18,2,FALSE)/1000 -> 4400.106964 | P12: =HLOOKUP(P9,'Growth (Impervious Area)'!$E$17:$N$18,2,FALSE)/1000 -> 4400.106964
B13: Total revenue | D13: 843737.7339 | F13: 0 | G13: =SUM(G10:G12) -> 118097.4382 | H13: =SUM(H10:H12) -> 118097.4382 | I13: 118097.4382 | J13: 118097.4382 | K13: 118097.4382 | L13: 108886.5942 | M13: 108886.5942 | N13: 108886.5942 | O13: 108886.5942 | P13: 108886.5942
B15: Notes:
B16: (1) Optional: Enter expected charges revenue for base year
F45: Yes

Sheet LGIP Cash Flow Analysis
A1: Local Government Infrastructure Plan
A2: Brisbane City Council | E2: Input
A3: =Coversheet!C8 -> Effective 10 December 2021 | E3: Formula
A5: 6.1 | B5: LGIP Summary Cash Flow Projections ($,000's)
B6: =IF('Modelling inputs'!E30="Default","Brisbane Adopted Infrastructure Charge Resolution (No.5) 2015",IF('Modelling inputs'!E30="Alternate charge","Alternate charging scenario: "&'Modelling inputs'!G30,"ERROR")) -> Brisbane Adopted Infrastructure Charge Resolution (No.5) 2015
B8: Cost Category | C8: Sub-category | E8: 2016 NPV | G8: 2016 | H8: 2017 | I8: 2018 | J8: 2019 | K8: 2020 | L8: 2021 | M8: 2022 | N8: 2023 | O8: 2024 | P8: 2025 | Q8: 2026
B9: Anticipated Cost (Cap X in $'000) | C9: Local Roads | E9: 1278877.72 | H9: 86733.1484 | I9: 86733.1484 | J9: 86733.1484 | K9: 86733.1484 | L9: 86733.1484 | M9: 289329.9032 | N9: 289329.9032 | O9: 289329.9032 | P9: 289329.9032 | Q9: 289329.9032
C10: Pathway | E10: 226868.679 | H10: 7176.8486 | I10: 7176.8486 | J10: 7176.8486 | K10: 7176.8486 | L10: 7176.8486 | M10: 62265.5372 | N10: 62265.5372 | O10: 62265.5372 | P10: 62265.5372 | Q10: 62265.5372
C11: Ferry Terminals | E11: 101255.847 | H11: 12006.9854 | I11: 12006.9854 | J11: 12006.9854 | K11: 12006.9854 | L11: 12006.9854 | M11: 16058.7388 | N11: 16058.7388 | O11: 16058.7388 | P11: 16058.7388 | Q11: 16058.7388
C12: Public Parks | E12: 462221.967 | H12: 44899.842 | I12: 44899.842 | J12: 44899.842 | K12: 44899.842 | L12: 44899.842 | M12: 86513.0012 | N12: 86513.0012 | O12: 86513.0012 | P12: 86513.0012 | Q12: 86513.0012
C13: Land for Community Facilities | E13: 30574.799 | H13: 248.7148 | I13: 248.7148 | J13: 248.7148 | K13: 248.7148 | L13: 248.7148 | M13: 9348.8858 | N13: 9348.8858 | O13: 9348.8858 | P13: 9348.8858 | Q13: 9348.8858
C14: Stormwater | E14: 115902.423 | H14: 12029.4352 | I14: 12029.4352 | J14: 12029.4352 | K14: 12029.4352 | L14: 12029.4352 | M14: 20666 | N14: 20666 | O14: 20666 | P14: 20666 | Q14: 20666
C15: Total Network Costs | E15: =SUM(E9:E14) -> 2215701.435 | G15: =SUM(G9:G14) -> 0 | H15: =SUM(H9:H14) -> 163094.9744 | I15: 163094.9744 | J15: 163094.9744 | K15: 163094.9744 | L15: 163094.9744 | M15: 484182.0662 | N15: 484182.0662 | O15: 484182.0662 | P15: 484182.0662 | Q15: 484182.0662
B16: Anticipated Charges Revenue ($'000) | C16: Residential | E16: =G16+NPV(WACC,H16:Q16) -> 523242.8234 | G16: ='Adopted Charge Revenue Forecast'!F10 -> 0 | H16: ='Adopted Charge Revenue Forecast'!G10 -> 76019.6 | I16: ='Adopted Charge Revenue Forecast'!H10 -> 76019.6 | J16: ='Adopted Charge Revenue Forecast'!I10 -> 76019.6 | K16: ='Adopted Charge Revenue Forecast'!J10 -> 76019.6 | L16: ='Adopted Charge Revenue Forecast'!K10 -> 76019.6 | M16: ='Adopted Charge Revenue Forecast'!L10 -> 63819.2 | N16: ='Adopted Charge Revenue Forecast'!M10 -> 63819.2 | O16: ='Adopted Charge Revenue Forecast'!N10 -> 63819.2 | P16: ='Adopted Charge Revenue Forecast'!O10 -> 63819.2 | Q16: ='Adopted Charge Revenue Forecast'!P10 -> 63819.2
C17: Non-residential | E17: 290492.162 | G17: ='Adopted Charge Revenue Forecast'!F11 -> 0 | H17: ='Adopted Charge Revenue Forecast'!G11 -> 38274.7336 | I17: ='Adopted Charge Revenue Forecast'!H11 -> 38274.7336 | J17: ='Adopted Charge Revenue Forecast'!I11 -> 38274.7336 | K17: ='Adopted Charge Revenue Forecast'!J11 -> 38274.7336 | L17: ='Adopted Charge Revenue Forecast'!K11 -> 38274.7336 | M17: ='Adopted Charge Revenue Forecast'!L11 -> 40667.2872 | N17: ='Adopted Charge Revenue Forecast'!M11 -> 40667.2872 | O17: ='Adopted Charge Revenue Forecast'!N11 -> 40667.2872 | P17: ='Adopted Charge Revenue Forecast'!O11 -> 40667.2872 | Q17: ='Adopted Charge Revenue Forecast'!P11 -> 40667.2872
C18: Non-residential (Stormwater component) | E18: 30002.74844 | G18: ='Adopted Charge Revenue Forecast'!F12 -> 0 | H18: ='Adopted Charge Revenue Forecast'!G12 -> 3803.104637 | I18: ='Adopted Charge Revenue Forecast'!H12 -> 3803.104637 | J18: ='Adopted Charge Revenue Forecast'!I12 -> 3803.104637 | K18: ='Adopted Charge Revenue Forecast'!J12 -> 3803.104637 | L18: ='Adopted Charge Revenue Forecast'!K12 -> 3803.104637 | M18: ='Adopted Charge Revenue Forecast'!L12 -> 4400.106964 | N18: ='Adopted Charge Revenue Forecast'!M12 -> 4400.106964 | O18: ='Adopted Charge Revenue Forecast'!N12 -> 4400.106964 | P18: ='Adopted Charge Revenue Forecast'!O12 -> 4400.106964 | Q18: ='Adopted Charge Revenue Forecast'!P12 -> 4400.106964
C19: Total revenue | E19: 843737.7339 | G19: =SUM(G16:G18) -> 0 | H19: =SUM(H16:H18) -> 118097.4382 | I19: 118097.4382 | J19: 118097.4382 | K19: 118097.4382 | L19: 118097.4382 | M19: 108886.5942 | N19: 108886.5942 | O19: 108886.5942 | P19: 108886.5942 | Q19: 108886.5942
B20: Annual Cash Flow ($'000) | C20: N/A | E20: -1379275.407 | G20: =G19-G15 -> 0 | H20: =H19-H15 -> -44997.53616 | I20: -44997.53616 | J20: -44997.53616 | K20: -44997.53616 | L20: -44997.53616 | M20: -375295.472 | N20: -375295.472 | O20: -375295.472 | P20: -375295.472 | Q20: -375295.472
B21: Cumulative Cash Flow ($'000) | C21: N/A | E21: N/A | G21: =G20 -> 0 | H21: =H20+G21 -> -44997.53616 | I21: =I20+H21 -> -89995.07233 | J21: -134992.6085 | K21: -179990.1447 | L21: -224987.6808 | M21: -600283.1529 | N21: -975578.6249 | O21: -1350874.097 | P21: -1726169.569 | Q21: -2101465.041
B22: Additional funding required | C22: N/A | E22: N/A | G22: =G20 -> 0 | H22: =H20+G22 -> -44997.53616 | I22: =I20+H22 -> -89995.07233 | J22: -134992.6085 | K22: -179990.1447 | L22: -224987.6808 | M22: -600283.1529 | N22: -975578.6249 | O22: -1350874.097 | P22: -1726169.569 | Q22: -2101465.041
